Cogmind - Beta 13 @@@ ROGUE MODE // 2024.05.12 @ 00:42:44 Player: Toa of Guts Result: Destroyed by 7L-IBA(R) with Subdweller Shrapnel Launcher Performance ------------- Evolutions (0) 0 Regions Visited (2) 400 Robots Destroyed (17) 85 Value Destroyed (415) 415 Prototype IDs (0) 0 Alien Tech Used (0) 0 Bonus (0) 0 TOTAL SCORE: 900 Bonus ------- None Cogmind --------- Core Integrity 0/250 Matter 300/300 Energy 100/100 System Corruption 0% Temperature Cool (0) Movement Rolling (130) Ox2 Location -10/Subcaves Parts ------- > --- POWER (1) -------- (None) > --- PROPULSION (2) --- Compact Wheel Compact Wheel > --- UTILITY (2) ------ Huge Storage Unit Utility Shielding > --- WEAPON (2) ------- Subdweller Beam Cannon > --- INVENTORY (25) --- Ion Engine Ion Engine Light Ion Engine Light Treads Light Treads Aluminum Leg Aluminum Leg Aluminum Leg Compact Wheel Compact Wheel Compact Wheel Disposable Heat Sink Small Battery (100) Large Matter Pod (150) Structural Scanner Terrain Scanner Light Armor Plating Small Laser Small Laser Subdweller Laser Subdweller Laser Beam Cannon Light Assault Rifle Subdweller Machine Gun Makeshift Hammer Peak State ------------ > --- POWER ------------ Subdweller Power Source > --- PROPULSION ------- Compact Wheel Compact Wheel > --- UTILITY ---------- Huge Storage Unit Utility Shielding > --- WEAPON ----------- Subdweller Machine Gun Subdweller Machine Gun > --- INVENTORY -------- Ion Engine Ion Engine Ion Engine Light Ion Engine Light Treads Light Treads Aluminum Leg Aluminum Leg Aluminum Leg Compact Wheel Compact Wheel Compact Wheel Disposable Heat Sink Small Battery Large Matter Pod Structural Scanner Terrain Scanner Light Armor Plating Small Laser Small Laser Small Laser Subdweller Laser Beam Cannon Light Assault Rifle Makeshift Hammer [Rating: 13] Favorites ----------- Power Ion Engine Engine Ion Engine Propulsion Compact Wheel Treads Light Treads Wheel Compact Wheel Utility Huge Storage Unit Storage Huge Storage Unit Protection Utility Shielding Weapon Small Laser Energy Gun Small Laser Energy Cannon Subdweller Beam Cannon Ballistic Gun Subdweller Machine Gun Build | -11 -10 -10 ------- Run | Yrd Mat Sub Slots Evolved . | . . . Power . | . . . Propulsion . | . . . Utility . | . . . Weapon . | . . . Parts Attached 20 | 6 8 6 Power 6 | 1 3 2 Engine 6 | 1 3 2 Core . | . . . Reactor . | . . . Propulsion 5 | 2 2 1 Treads 2 | 2 . . Leg . | . . . Wheel 3 | . 2 1 Hover . | . . . Flight . | . . . Utility 4 | 1 3 . Device . | . . . Storage 3 | 1 2 . Processor . | . . . Hackware . | . . . Protection 1 | . 1 . Artifact . | . . . Weapon 5 | 2 . 3 Energy Gun 2 | 2 . . Energy Cannon 1 | . . 1 Ballistic Gun 2 | . . 2 Ballistic Cannon . | . . . Launcher . | . . . Special Weapon . | . . . Impact Weapon . | . . . Slashing Weapon . | . . . Piercing Weapon . | . . . Special Melee Weapon . | . . . Unidentified Prototypes . | . . . Parts Lost 4 | . . 4 Power 2 | . . 2 Propulsion 1 | . . 1 Utility . | . . . Weapon 1 | . . 1 Highest Loss Streak 2 | . . 2 To Critical Strikes . | . . . Average Slot Usage (%) 99 | . 99 99 Engine 14 | . 14 14 Treads 7 | . 10 . Wheel 20 | . 17 27 Storage 17 | . 19 14 Protection 10 | . 8 14 Energy Gun 20 | . 28 3 Ballistic Gun 7 | . . 23 Naked Turns . | . . . Heaviest Build 98 | 10 88 98 Greatest Support 40 | 40 40 32 Greatest Overweight (x) 5 | 2 2 5 Average Overweight (x) 1 | . 1 2 Largest Inventory Capacity 25 | 8 25 25 Average Capacity 20 | 7 18 25 Most Carried 25 | 6 24 25 Average Carried 16 | 3 14 24 Final Capacity 25 | 8 25 25 Final Carried 25 | 6 24 25 Class Distribution -------------------- 100% | Mutant Dominant Class ---------------- Mutant | -10/Materials Mutant | -10/Subcaves Resources | -11 -10 -10 ----------- Run | Yrd Mat Sub Matter Collected 581 | 260 225 96 Remotely . | . . . Salvage Created 586 | . 437 149 Parts 43 | . 35 8 Haulers Intercepted 2 | . 2 . Recyclers Shooed 1 | . 1 . Parts Field Recycled . | . . . Retrieved Matter . | . . . Parts Self-Destructed 7 | . . 7 Prevented . | . . . Kills | -11 -10 -10 ------- Run | Yrd Mat Sub Combat Hostiles Destroyed 12 | . 8 4 Guns 12 | . 8 4 Classes Destroyed 6 | . 5 1 Hauler 2 | . 2 . Recycler 1 | . 1 . Watcher 2 | . 2 . Swarmer 3 | . 3 . Grunt 5 | . 5 . Subdweller 4 | . . 4 Best Kill Streak 3 | . 3 1 Combat Bots Only 3 | . 3 1 Max Kills in Single Turn 1 | . 1 1 Gunslinging . | . . . Exploded . | . . . Melee . | . . . Uniques/NPCs Destroyed . | . . . Combat | -11 -10 -10 -------- Run | Yrd Mat Sub Hostile Shots Fired 49 | . 22 27 Missed 13 | . 6 7 Damage Taken 747 | . 184 563 Core 252 | . 46 206 Absorbed by Shields . | . . . Redirected to Shielding 24 | . 6 18 Core Remaining (%) 100 | 100 . . Volleys Fired 51 | . 32 19 Largest 2 | . 2 2 Hottest 110 | . 80 110 Shots Fired 102 | . 64 38 Gun 101 | . 64 37 Cannon 1 | . . 1 Launcher . | . . . Special . | . . . Kinetic 19 | . . 19 Thermal 83 | . 64 19 Explosive . | . . . Electromagnetic . | . . . Robot Hit Streak 32 | . 7 32 Robot Miss Streak 4 | . 4 2 Penetration Max . | . . . Secondary Targets . | . . . Shots Hit Robots 76 | . 44 32 Core Hits 31 | . 23 8 Critical Kills 1 | . . 1 Critical Parts Destroyed . | . . . Critical Strikes 1 | . . 1 Destroy 1 | . . 1 Melee Attacks . | . . . Impact . | . . . Slashing . | . . . Piercing . | . . . Sneak Attacks . | . . . Combat Hostiles . | . . . Follow-up Attacks . | . . . Damage Inflicted 1009 | . 506 503 Guns 975 | . 497 478 Cannons 25 | . . 25 Explosions . | . . . Melee . | . . . Ramming 9 | . 9 . Kinetic 289 | . . 289 Thermal 711 | . 497 214 Explosive . | . . . Electromagnetic . | . . . Impact . | . . . Slashing . | . . . Piercing . | . . . Highest Corruption . | . . . Average Corruption . | . . . Corruption Purged . | . . . Corruption Blocked . | . . . Overload Shots . | . . . Overflow Damage . | . . . Projectiles . | . . . Explosions . | . . . Melee . | . . . Knockbacks . | . . . Impact . | . . . Kinetic . | . . . Secondary . | . . . Self-Inflicted Damage . | . . . Shots . | . . . Rammed 2 | . 2 . Targets Rammed 2 | . 2 . Kicked . | . . . Crushed . | . . . Highest Temperature 150 | . 150 . Average Temperature 52 | . 52 . Received Heat Transfer 117 | . 69 48 Siege Activations . | . . . Robots Corrupted . | . . . Combat Hostiles . | . . . Parts Fried . | . . . Impact Corruptions . | . . . Robots Melted . | . . . Combat Hostiles . | . . . Parts Melted 1 | . . 1 Heat Transferred 1587 | . 1125 462 Parts Sabotaged . | . . . Parts Stolen . | . . . Parts Stripped . | . . . Power Chain Reactions . | . . . Alert | -11 -10 -10 ------- Run | Yrd Mat Sub Peak Influence 147 | . 147 . Initial . | . . . Average 38 | . 40 . Maximum Alert Level . | . . . Low Security (%) 100 | 100 100 . Level 1 . | . . . Level 2 . | . . . Level 3 . | . . . Level 4 . | . . . Level 5 . | . . . High Security . | . . . Max Security . | . . . Squads Dispatched 4 | . 4 . Investigation 3 | . 3 . Extermination . | . . . Reinforcement 1 | . 1 . Assault . | . . . Garrison . | . . . Intercept . | . . . Searches Triggered . | . . . Construction Impeded . | . . . Haulers Reinforced . | . . . Active Scanning Responses . | . . . Cargo Convoy Interrupts . | . . . Stealth | -11 -10 -10 --------- Run | Yrd Mat Sub Distress Signals . | . . . Communications Jammed . | . . . Distress Signals . | . . . Times Spotted 17 | . 12 5 Peak Tracking Total 3 | . 3 1 Tactical Retreats . | . . . Traps | -11 -10 -10 ------- Run | Yrd Mat Sub Traps Triggered 3 | . 2 1 Indirectly . | . . . Trap Hack Attempts . | . . . Triggered . | . . . Disarmed . | . . . Reprogrammed . | . . . Reused . | . . . Traps Extracted . | . . . Installed . | . . . Triggered . | . . . Machines | -11 -10 -10 ---------- Run | Yrd Mat Sub Machines Disabled . | . . . Max in Single Turn . | . . . Machines Repaired . | . . . Machines Dismantled . | . . . Machines Sabotaged . | . . . Overloaded Fab Kills . | . . . Hacking | -11 -10 -10 --------- Run | Yrd Mat Sub Machines Accessed 4 | . 4 . Terminals 4 | . 4 . Fabricators . | . . . Repair Stations . | . . . Recycling Units . | . . . Scanalyzers . | . . . Garrison Access . | . . . Total Hacks 18 | . 18 . Successful 7 | . 7 . Failed 11 | . 11 . Catastrophic 3 | . 3 . Database Lockouts . | . . . Manual 15 | . 15 . Terminals 18 | . 18 . Fabricators . | . . . Repair Stations . | . . . Recycling Units . | . . . Scanalyzers . | . . . Garrison Access . | . . . Terminal Hacks 3 | . 3 . Part Schematic 1 | . 1 . Locate Traps 1 | . 1 . Zone Layout 1 | . 1 . Fabricator Hacks . | . . . Repair Station Hacks . | . . . Recycling Unit Hacks . | . . . Scanalyzer . | . . . Garrison Access Hacks . | . . . Unauthorized Hacks 4 | . 4 . Terminals 4 | . 4 . Track 2 | . 2 . Botnet 2 | . 2 . Fabricators . | . . . Repair Stations . | . . . Recycling Units . | . . . Scanalyzers . | . . . Garrison Access . | . . . Data Cores Recovered . | . . . Used . | . . . Hacking Detections 4 | . 4 . Full Trace Events 1 | . 1 . Feedback Events . | . . . Feedback Blocked . | . . . Robot Schematics Acquired . | . . . Robots Built . | . . . Authchips . | . . . Time . | . . . Total Robot Build Rating . | . . . Part Schematics Acquired 1 | . 1 . Parts Built . | . . . Authchips . | . . . Time . | . . . Total Part Build Rating . | . . . Parts Repaired . | . . . Time . | . . . Parts Recycled . | . . . Recycled Matter . | . . . Retrieved Matter . | . . . Retrieved Components . | . . . Parts Scanalyzed . | . . . Part Schematics Acquired . | . . . Parts Damaged . | . . . Bothacking | -11 -10 -10 ------------ Run | Yrd Mat Sub Used RIF Installer . | . . . Robots Hacked . | . . . Non-combat . | . . . Combat . | . . . Robot Hacks Applied . | . . . Relay Couplers Released . | . . . Fabnet Peak Effective % . | . . . Robots Rewired . | . . . Allies Hacked . | . . . Hacks Repelled . | . . . Allies | -11 -10 -10 -------- Run | Yrd Mat Sub Total Allies . | . . . Largest Group . | . . . Highest-Rated Group . | . . . Highest-Rated Ally . | . . . Total Orders . | . . . Ally Attacks . | . . . Total Damage . | . . . Kills . | . . . Allies Corrupted . | . . . Allies Melted . | . . . Intel | -11 -10 -10 ------- Run | Yrd Mat Sub Robot Analysis Total . | . . . Derelict Logs Recovered 1 | . . 1 Drone Launches . | . . . Drone Recoveries . | . . . Exploration | -11 -10 -10 ------------- Run | Yrd Mat Sub Turns Passed 2469 | 75 1668 726 Spaces Moved 1296 | 40 905 351 Core 6 | 6 . . Treads 256 | 34 222 . Legs . | . . . Wheels 1034 | . 683 351 Hover . | . . . Flight . | . . . Fastest Speed 50 | 50 130 130 Average Speed 136 | 152 137 131 Slowest Speed 175 | 160 160 175 Overloaded Moves . | . . . Propulsion Burnouts . | . . . Robots Hopped . | . . . Cave-ins Triggered . | . . . Exploration Rate (%) 41 | 5 98 22 Regions Visited 2 Branch Regions 1 Pre-discovered Areas 1 | . . 1 Known Exits Taken . | . . . Unknown Exits Taken 2 | 1 1 . Scrap Searched 11 | . . 11 Spaces Dug . | . . . Terrain Destroyed . | . . . Melee . | . . . Projectile . | . . . AOE . | . . . Terrain Rammed . | . . . Walls Destroyed . | . . . Machines Disabled . | . . . Actions | -11 -10 -10 --------- Run | Yrd Mat Sub Total 1892 | 51 1263 578 Wait 487 | . 299 188 Move 1294 | 39 904 351 Hop . | . . . Pick Up 28 | 6 15 7 Fast Attach 11 | 6 2 3 Attach 2 | . . 2 Detach 1 | . 1 . Swap 7 | . 6 1 Drop 9 | . 2 7 Fire 51 | . 32 19 Melee . | . . . Ram . | . . . Kick . | . . . Crush 2 | . 2 . Escape Stasis . | . . . Rewire . | . . . Trap . | . . . Miscellaneous . | . . . Route ------- -11/Scrapyard -10/Materials (discovered 6 exits: [*Mat x3] / [*Min x2] / [*Sub]) -10/Subcaves History --------- Turn | Location | Event 20 | -11/Scrapyard | Discovered new exit (range 16) 76 | -11/Scrapyard | Entered Materials 309 | -10/Materials | Build established: Mutant 450 | -10/Materials | Discovered new exit (range 14) 567 | -10/Materials | Discovered new exit (range 14) 843 | -10/Materials | Discovered new exit (range 8) 1019 | -10/Materials | Discovered new exit (range 8) 1195 | -10/Materials | Discovered new exit (range 16) 1739 | -10/Materials | Discovered new exit (range 5) 1744 | -10/Materials | Entered Subcaves 1880 | -10/Subcaves | Core integrity fell below 50% 2227 | -10/Subcaves | Learned location of Zion (-6) 2348 | -10/Subcaves | Disturbed a concealed Subdweller 2366 | -10/Subcaves | Core integrity fell below 20% 2448 | -10/Subcaves | Disturbed a concealed Subdweller 2470 | -10/Subcaves | Destroyed by 7L-IBA(R) with Subdweller Shrapnel Launcher Last Messages --------------- 02406_ Searching scrap... 02406_ Found Piercing Trap. 02406_ Found Flamer. 02406_ Found 31 Matter. 02408_ Searching scrap... 02408_ Found Sub. Power Source. 02408_ Found 25 Matter. 02409_ Searching scrap... 02409_ Found Sub. Beam Cannon. 02409_ Found Sub. Power Source. 02409_ Found 12 Matter. 02413_ Dropped Sub. Machine Gun. 02413_ Acquired Sub. Beam Cannon. 02415_ Dropped Sml. Laser. 02415_ Acquired Sml. Laser. 02416_ Dropped Sml. Laser. 02417_ Acquired 10 matter. 02424_ Acquired Sub. Machine Gun. 02470_ Ion Engine destroyed. 02470_ Sub. Machine Gun destroyed. Map ----- +----------------------------------------------------+ | ???????????????## ?# #???????# ## | | ???????????????# ## #????#### ##? | | ???????????????# #????# #?? | | ???????????????# #????## ##? | | ???????????????## #####?## ## | | ????????????????## #### ##?# | | ?????????????????###???## #### | | ????????????????????????## #?## | | ???????????????###???????### #??# | | ???????????????# ##???????## ##?# | | ???????????????# ##?###??# ### | | ??????????###### ## #??## ### | | ?????????##%## #???##### # | | ?????????#=&"##" # ##??????# # | | ?????????##[%*%& # ##?####??# | | ?????????#*|#%#"= #?## #### | | ?????????##%### ##?# ## ## | | ??????????###?## #### ##### | | ???????????????# ##!# #???? | | ???????????????# % #???? | | ???????????????## & #???? | | ??????????????#### ## #???? | | ?????????????## ## ### #????? | | ?????????????# ;;;; ;# #????? | | ????????????## ; "" #???? | | ????????????# ; @ ##???? | | ???????##?#; ### ##????? | | ???????#<& ; #?####?????? | | ???????#&; R ;# #?????????? | | ???????# #; ; ;##### #?????????? | | ???????? $##; ##???## ##?????????? | | ???????#